[Event "Live Chess"]
[Site "Chess.com"]
[Date "2023.09.16"]
[Round "-"]
[White "Miinero"]
[Black "GilbertoGOFaria"]
[Result "0-1"]
[WhiteElo "1869"]
[BlackElo "1664"]
[TimeControl "900+5"]
[EndTime "16:49:30 PDT"]
[Termination "GilbertoGOFaria venceu por desistência"]

1. e4 {[%clk 0:14:54]} 1... e5 {[%clk 0:15:02.7]} 2. Nf3 {[%clk 0:14:57.8]} 2...
Nc6 {[%clk 0:15:06.5]} 3. Bc4 {[%clk 0:15:00.3]} 3... Bc5 {[%clk 0:15:05]} 4.
O-O {[%clk 0:15:04]} 4... Nf6 {[%clk 0:15:05.1]} 5. d3 {[%clk 0:14:55.5]} 5...
O-O {[%clk 0:15:06.8]} 6. c3 {[%clk 0:14:59.4]} 6... d6 {[%clk 0:14:54.1]} 7.
Re1 {[%clk 0:15:03.1]} 7... Na5 {[%clk 0:14:58.1]} 8. Bb5 {[%clk 0:15:03.7]}
8... c6 {[%clk 0:14:55.2]} 9. Ba4 {[%clk 0:15:07.5]} 9... b5 {[%clk 0:14:57.7]}
10. Bc2 {[%clk 0:15:12]} 10... Nb7 {[%clk 0:15:00.4]} 11. Nbd2 {[%clk
0:15:14.4]} 11... Qb6 {[%clk 0:14:58.4]} 12. Qe2 {[%clk 0:14:55.4]} 12... Bg4
{[%clk 0:14:59.2]} 13. h3 {[%clk 0:14:57.5]} 13... Bh5 {[%clk 0:15:03]} 14. Nf1
{[%clk 0:14:58.6]} 14... Rae8 {[%clk 0:15:02.7]} 15. Ng3 {[%clk 0:15:02.3]}
15... Bg6 {[%clk 0:15:06]} 16. Bg5 {[%clk 0:15:05.4]} 16... Nd7 {[%clk
0:15:08.2]} 17. Nh4 {[%clk 0:15:08.7]} 17... Nd8 {[%clk 0:14:51.3]} 18. Nhf5
{[%clk 0:15:10.3]} 18... Ne6 {[%clk 0:14:47.3]} 19. Bd2 {[%clk 0:15:07.6]} 19...
Nf4 {[%clk 0:14:16.2]} 20. Bxf4 {[%clk 0:15:09.2]} 20... exf4 {[%clk 0:14:21.1]}
21. Nh1 {[%clk 0:15:06.5]} 21... Bxf5 {[%clk 0:14:24.2]} 0-1

[Event "Live Chess"]
[Site "Chess.com"]
[Date "2023.09.16"]
[Round "-"]
[White "Capi-D-Vara"]
[Black "Gabriel0298"]
[Result "0-1"]
[WhiteElo "1275"]
[BlackElo "1607"]
[TimeControl "900+5"]
[EndTime "16:50:47 PDT"]
[Termination "Gabriel0298 venceu por desistência"]

1. e4 {[%clk 0:15:02.7]} 1... e6 {[%clk 0:15:04.9]} 2. d4 {[%clk 0:15:05.6]}
2... d5 {[%clk 0:15:09.8]} 3. Bd3 {[%clk 0:15:09.9]} 3... Nf6 {[%clk 0:15:10.1]}
4. e5 {[%clk 0:15:12.7]} 4... Nfd7 {[%clk 0:15:13.9]} 5. Nc3 {[%clk 0:15:13.5]}
5... c5 {[%clk 0:15:18.3]} 6. Nce2 {[%clk 0:15:17.1]} 6... Nc6 {[%clk
0:15:21.3]} 7. c3 {[%clk 0:15:20.2]} 7... Qb6 {[%clk 0:15:25.7]} 8. f4 {[%clk
0:15:21.6]} 8... cxd4 {[%clk 0:15:29.6]} 9. cxd4 {[%clk 0:15:25.4]} 9... Nxd4
{[%clk 0:15:34.1]} 10. Nxd4 {[%clk 0:15:28.7]} 10... Qxd4 {[%clk 0:15:39]} 11.
Nf3 {[%clk 0:15:30.9]} 11... Bb4+ {[%clk 0:15:42.5]} 12. Ke2 {[%clk 0:14:52.7]}
12... Qb6 {[%clk 0:15:43]} 13. Be3 {[%clk 0:14:55.5]} 13... Bc5 {[%clk
0:15:42.1]} 14. Bxc5 {[%clk 0:14:53.6]} 14... Qxc5 {[%clk 0:15:47]} 15. Qc2
{[%clk 0:14:55.7]} 15... Qxc2+ {[%clk 0:15:49.9]} 16. Bxc2 {[%clk 0:15:00.6]}
16... b6 {[%clk 0:15:54]} 17. Rac1 {[%clk 0:15:03.6]} 17... Ba6+ {[%clk
0:15:58.5]} 18. Bd3 {[%clk 0:15:05.9]} 18... Bxd3+ {[%clk 0:16:00.8]} 19. Kxd3
{[%clk 0:15:10.8]} 19... Nc5+ {[%clk 0:16:05.4]} 20. Ke3 {[%clk 0:15:13.2]}
20... O-O {[%clk 0:16:09.9]} 21. Nd4 {[%clk 0:15:12.8]} 21... Rac8 {[%clk
0:16:12.9]} 22. b4 {[%clk 0:15:13.9]} 22... Ne4 {[%clk 0:16:16.4]} 23. a3 {[%clk
0:14:57.9]} 23... a5 {[%clk 0:16:12.2]} 24. bxa5 {[%clk 0:14:30.8]} 24... bxa5
{[%clk 0:16:17.1]} 25. a4 {[%clk 0:14:31.6]} 25... Rc3+ {[%clk 0:16:17]} 26. Ke2
{[%clk 0:14:31]} 26... Rfc8 {[%clk 0:16:20.1]} 27. Rxc3 {[%clk 0:14:27.3]} 27...
Rxc3 {[%clk 0:16:25]} 28. Rb1 {[%clk 0:14:23.7]} 28... g6 {[%clk 0:16:24.5]} 29.
Rb5 {[%clk 0:14:28]} 29... Rc4 {[%clk 0:16:27.6]} 0-1

[Event "Live Chess"]
[Site "Chess.com"]
[Date "2023.09.16"]
[Round "-"]
[White "Frogstetic"]
[Black "FerreiraPedro"]
[Result "1-0"]
[WhiteElo "2001"]
[BlackElo "1398"]
[TimeControl "900+5"]
[EndTime "16:51:12 PDT"]
[Termination "Frogstetic venceu por desistência"]

1. e4 {[%clk 0:14:58.2]} 1... e5 {[%clk 0:15:03.8]} 2. Nf3 {[%clk 0:15:00]} 2...
Nf6 {[%clk 0:15:07.4]} 3. Nc3 {[%clk 0:15:02.8]} 3... Nc6 {[%clk 0:15:11.4]} 4.
Bc4 {[%clk 0:15:07.3]} 4... Bc5 {[%clk 0:15:14.5]} 5. d3 {[%clk 0:15:11.3]} 5...
h6 {[%clk 0:15:16.4]} 6. O-O {[%clk 0:15:15.7]} 6... d6 {[%clk 0:15:20.4]} 7. h3
{[%clk 0:15:20.1]} 7... O-O {[%clk 0:15:24.3]} 8. Be3 {[%clk 0:15:23.9]} 8...
Bb6 {[%clk 0:15:27.9]} 9. a4 {[%clk 0:15:23.2]} 9... Re8 {[%clk 0:15:30.3]} 10.
Bxb6 {[%clk 0:15:15.3]} 10... a6 {[%clk 0:15:34.3]} 11. Be3 {[%clk 0:15:16.8]}
11... Be6 {[%clk 0:15:35.5]} 12. Nd5 {[%clk 0:15:18.4]} 12... Bxd5 {[%clk
0:15:37.3]} 13. exd5 {[%clk 0:15:23.3]} 13... Na5 {[%clk 0:15:40.7]} 14. Ba2
{[%clk 0:15:26.3]} 14... c6 {[%clk 0:15:43.6]} 15. b4 {[%clk 0:15:29.5]} 15...
cxd5 {[%clk 0:15:41.9]} 16. bxa5 {[%clk 0:15:33.3]} 16... Qxa5 {[%clk
0:15:46.1]} 17. Qd2 {[%clk 0:15:34.1]} 17... Qxa4 {[%clk 0:15:47.4]} 18. Bxd5
{[%clk 0:15:32.7]} 18... Qb5 {[%clk 0:15:49.2]} 19. Bc4 {[%clk 0:15:32.8]} 19...
Qc6 {[%clk 0:15:39.6]} 20. Bxh6 {[%clk 0:15:14.6]} 20... gxh6 {[%clk 0:15:40.2]}
21. Qxh6 {[%clk 0:15:19.5]} 21... Nh7 {[%clk 0:15:41.9]} 22. Ng5 {[%clk
0:15:04.7]} 22... Nxg5 {[%clk 0:15:45.5]} 23. Qxg5+ {[%clk 0:15:09.1]} 23... Kf8
{[%clk 0:15:48.8]} 24. f4 {[%clk 0:15:05.3]} 24... d5 {[%clk 0:15:52.2]} 25. Bb3
{[%clk 0:15:03.8]} 25... exf4 {[%clk 0:15:55.3]} 26. Rxf4 {[%clk 0:15:06.3]}
26... Qc5+ {[%clk 0:15:51.2]} 27. Kh1 {[%clk 0:15:10.4]} 27... Rad8 {[%clk
0:15:38.6]} 28. Rh4 {[%clk 0:15:12.3]} 28... Qd4 {[%clk 0:15:25.1]} 29. Rxd4
{[%clk 0:15:05.8]} 1-0

[Event "Live Chess"]
[Site "Chess.com"]
[Date "2023.09.16"]
[Round "-"]
[White "Gabriel0298"]
[Black "Miinero"]
[Result "0-1"]
[WhiteElo "1604"]
[BlackElo "1877"]
[TimeControl "900+5"]
[EndTime "16:51:47 PDT"]
[Termination "Miinero venceu por desistência"]

1. e4 {[%clk 0:15:04]} 1... e5 {[%clk 0:14:58.5]} 2. Nf3 {[%clk 0:15:08.3]} 2...
Nc6 {[%clk 0:15:02.2]} 3. Bc4 {[%clk 0:15:12.7]} 3... Bc5 {[%clk 0:15:05.2]} 4.
O-O {[%clk 0:15:17.1]} 4... Nf6 {[%clk 0:15:08.8]} 5. c3 {[%clk 0:15:20.9]} 5...
d6 {[%clk 0:15:08.6]} 6. d4 {[%clk 0:15:25.8]} 6... exd4 {[%clk 0:15:12.3]} 7.
cxd4 {[%clk 0:15:30.7]} 7... Bb6 {[%clk 0:15:16.4]} 8. d5 {[%clk 0:15:35.1]}
8... Ne7 {[%clk 0:15:17.2]} 9. Nc3 {[%clk 0:15:37.9]} 9... Bg4 {[%clk
0:15:19.2]} 10. Bg5 {[%clk 0:15:41.7]} 10... Ng6 {[%clk 0:15:22.5]} 11. h3
{[%clk 0:15:45.2]} 11... Bxf3 {[%clk 0:15:23.4]} 12. Qxf3 {[%clk 0:15:50.1]}
12... Ne5 {[%clk 0:15:26.3]} 13. Bxf6 {[%clk 0:15:53.1]} 13... Nxf3+ {[%clk
0:15:29.4]} 0-1

[Event "Live Chess"]
[Site "Chess.com"]
[Date "2023.09.16"]
[Round "-"]
[White "GustavoFarinha"]
[Black "Tercette"]
[Result "1-0"]
[WhiteElo "1694"]
[BlackElo "276"]
[TimeControl "900+5"]
[EndTime "16:52:12 PDT"]
[Termination "GustavoFarinha venceu por xeque-mate"]

1. e4 {[%clk 0:15:02.6]} 1... Nf6 {[%clk 0:15:00]} 2. d3 {[%clk 0:15:04.9]} 2...
e5 {[%clk 0:15:02]} 3. Nf3 {[%clk 0:15:07.1]} 3... Bc5 {[%clk 0:15:03.9]} 4. h3
{[%clk 0:15:04]} 4... O-O {[%clk 0:15:05.4]} 5. Nc3 {[%clk 0:15:07.1]} 5... Nc6
{[%clk 0:15:05.8]} 6. Be2 {[%clk 0:15:09.7]} 6... Nb4 {[%clk 0:15:09]} 7. a3
{[%clk 0:15:12.3]} 7... Nc6 {[%clk 0:15:07.8]} 8. O-O {[%clk 0:15:16.3]} 8... d6
{[%clk 0:15:08.4]} 9. Bg5 {[%clk 0:15:19.5]} 9... Qe7 {[%clk 0:15:02.3]} 10. Nd5
{[%clk 0:15:22.4]} 10... Qe6 {[%clk 0:15:05]} 11. Nxc7 {[%clk 0:15:23.6]} 11...
Rb8 {[%clk 0:15:06]} 12. Nxe6 {[%clk 0:15:27.1]} 12... Re8 {[%clk 0:14:58.6]}
13. Nxc5 {[%clk 0:15:29]} 13... Re7 {[%clk 0:14:54.6]} 14. Bxf6 {[%clk
0:15:30.4]} 14... Rc7 {[%clk 0:14:58]} 15. Bh4 {[%clk 0:15:24.2]} 15... b6
{[%clk 0:14:59.8]} 16. Na6 {[%clk 0:15:25.1]} 16... Bxa6 {[%clk 0:14:59.8]} 17.
b4 {[%clk 0:15:27.6]} 17... Bb5 {[%clk 0:14:59.3]} 18. c4 {[%clk 0:15:31.6]}
18... Ba6 {[%clk 0:14:56.8]} 19. b5 {[%clk 0:15:35.9]} 19... Nd8 {[%clk
0:14:55.4]} 20. bxa6 {[%clk 0:15:39.4]} 20... Nc6 {[%clk 0:14:54.9]} 21. d4
{[%clk 0:15:41]} 21... exd4 {[%clk 0:14:54.7]} 22. Nxd4 {[%clk 0:15:45.9]} 22...
Nxd4 {[%clk 0:14:57.7]} 23. Qxd4 {[%clk 0:15:50.8]} 23... d5 {[%clk 0:14:57.8]}
24. Bg3 {[%clk 0:15:50.8]} 24... Rd8 {[%clk 0:14:57.6]} 25. Bxc7 {[%clk
0:15:54.9]} 25... Rd7 {[%clk 0:15:00.1]} 26. Bxb6 {[%clk 0:15:56.7]} 26... axb6
{[%clk 0:15:02.1]} 27. cxd5 {[%clk 0:16:00.9]} 27... b5 {[%clk 0:15:04]} 28. a7
{[%clk 0:16:04.4]} 28... Rxa7 {[%clk 0:15:06.9]} 29. Qxa7 {[%clk 0:16:09.3]}
29... b4 {[%clk 0:15:09.8]} 30. Qb8# {[%clk 0:16:12.7]} 1-0

[Event "Live Chess"]
[Site "Chess.com"]
[Date "2023.09.16"]
[Round "-"]
[White "ViniciusBritoFc"]
[Black "Jonas_Rodrigues"]
[Result "0-1"]
[WhiteElo "1199"]
[BlackElo "1279"]
[TimeControl "900+5"]
[EndTime "16:52:40 PDT"]
[Termination "Jonas_Rodrigues venceu por xeque-mate"]

1. c4 {[%clk 0:15:03.2]} 1... Nf6 {[%clk 0:15:03.5]} 2. Nc3 {[%clk 0:15:06.9]}
2... d5 {[%clk 0:15:07.4]} 3. cxd5 {[%clk 0:15:10.5]} 3... Nxd5 {[%clk 0:15:12]}
4. Nxd5 {[%clk 0:15:14.7]} 4... Qxd5 {[%clk 0:15:16.9]} 5. Nf3 {[%clk
0:15:18.2]} 5... Nc6 {[%clk 0:15:20.8]} 6. Qc2 {[%clk 0:15:20.6]} 6... g6 {[%clk
0:15:21.7]} 7. e4 {[%clk 0:15:25.2]} 7... Qe6 {[%clk 0:15:16.8]} 8. Ng5 {[%clk
0:15:22.1]} 8... Qf6 {[%clk 0:15:18.5]} 9. d3 {[%clk 0:15:17.2]} 9... h6 {[%clk
0:15:19.9]} 10. Nf3 {[%clk 0:15:18.3]} 10... Bg4 {[%clk 0:15:21.8]} 11. Be2
{[%clk 0:15:22]} 11... O-O-O {[%clk 0:15:25]} 12. O-O {[%clk 0:15:25.6]} 12...
Bxf3 {[%clk 0:15:24.5]} 13. Bxf3 {[%clk 0:15:29.9]} 13... Nd4 {[%clk 0:15:28.4]}
14. Bg4+ {[%clk 0:15:22.9]} 14... Kb8 {[%clk 0:15:29]} 15. Qa4 {[%clk
0:15:25.1]} 15... h5 {[%clk 0:15:24.2]} 16. Bh3 {[%clk 0:15:21.7]} 16... g5
{[%clk 0:15:14.5]} 17. g3 {[%clk 0:15:25.6]} 17... g4 {[%clk 0:15:17.8]} 18. Bg2
{[%clk 0:15:29.5]} 18... Nf3+ {[%clk 0:15:21.5]} 19. Bxf3 {[%clk 0:15:32.7]}
19... gxf3 {[%clk 0:15:23.3]} 20. Qb3 {[%clk 0:15:36.2]} 20... h4 {[%clk
0:15:25.3]} 21. Bf4 {[%clk 0:15:39]} 21... hxg3 {[%clk 0:15:17.6]} 22. Bxg3
{[%clk 0:15:41.4]} 22... e5 {[%clk 0:15:15.5]} 23. Rac1 {[%clk 0:15:41.2]} 23...
Bd6 {[%clk 0:15:08.6]} 24. Rc6 {[%clk 0:15:39.1]} 24... Rdg8 {[%clk 0:15:07.6]}
25. Rfc1 {[%clk 0:15:34.6]} 25... Qh4 {[%clk 0:15:04.5]} 26. Kh1 {[%clk
0:15:23.3]} 26... Rxg3 {[%clk 0:15:00.3]} 27. fxg3 {[%clk 0:15:25.1]} 27...
Qxh2# {[%clk 0:15:03.7]} 0-1

[Event "Live Chess"]
[Site "Chess.com"]
[Date "2023.09.16"]
[Round "-"]
[White "Cantalicioo"]
[Black "Gustavoksbr"]
[Result "0-1"]
[WhiteElo "1586"]
[BlackElo "1913"]
[TimeControl "900+5"]
[EndTime "16:52:42 PDT"]
[Termination "Gustavoksbr venceu por desistência"]

1. d4 {[%clk 0:15:01.7]} 1... Nf6 {[%clk 0:15:04.2]} 2. c4 {[%clk 0:15:05.6]}
2... g6 {[%clk 0:15:08.5]} 3. Nf3 {[%clk 0:15:10.1]} 3... Bg7 {[%clk 0:15:12]}
4. Nc3 {[%clk 0:15:14.8]} 4... d5 {[%clk 0:15:16.3]} 5. e3 {[%clk 0:15:14.4]}
5... O-O {[%clk 0:15:16.6]} 6. cxd5 {[%clk 0:15:17.4]} 6... Nxd5 {[%clk
0:15:20.6]} 7. Bc4 {[%clk 0:15:16.2]} 7... Nxc3 {[%clk 0:15:05.8]} 8. bxc3
{[%clk 0:15:18.7]} 8... c5 {[%clk 0:15:06.3]} 9. O-O {[%clk 0:15:18.2]} 9... Bg4
{[%clk 0:14:50.6]} 10. h3 {[%clk 0:15:17]} 10... Bxf3 {[%clk 0:14:35.4]} 11.
Qxf3 {[%clk 0:15:21.9]} 11... Nc6 {[%clk 0:14:35.6]} 12. Ba3 {[%clk 0:15:17.5]}
12... cxd4 {[%clk 0:14:18]} 13. cxd4 {[%clk 0:15:19.3]} 13... Qa5 {[%clk
0:14:08.2]} 14. Bb2 {[%clk 0:14:59.7]} 14... Rac8 {[%clk 0:12:17.5]} 15. Bb3
{[%clk 0:14:52]} 15... e5 {[%clk 0:11:48.9]} 16. d5 {[%clk 0:14:12.4]} 16... Nb4
{[%clk 0:11:12.6]} 17. e4 {[%clk 0:13:58.7]} 17... Nc2 {[%clk 0:11:06.7]} 18.
Rac1 {[%clk 0:13:24.6]} 18... Nd4 {[%clk 0:11:06.5]} 19. Bxd4 {[%clk 0:13:13.5]}
19... exd4 {[%clk 0:11:09.4]} 20. Rxc8 {[%clk 0:13:14]} 20... Rxc8 {[%clk
0:11:11.6]} 21. d6 {[%clk 0:13:16.8]} 21... Rf8 {[%clk 0:10:19.3]} 22. d7 {[%clk
0:12:29.3]} 22... Qc7 {[%clk 0:09:37.7]} 23. Ba4 {[%clk 0:12:01.8]} 23... a6
{[%clk 0:09:38.5]} 24. Qa3 {[%clk 0:10:48.4]} 24... b5 {[%clk 0:09:19.3]} 25.
Rc1 {[%clk 0:10:49]} 25... Qxd7 {[%clk 0:09:13.7]} 26. Bb3 {[%clk 0:10:39]}
26... d3 {[%clk 0:09:03]} 27. Rd1 {[%clk 0:09:41.8]} 27... d2 {[%clk 0:08:08.8]}
28. Qxa6 {[%clk 0:09:17.1]} 28... Re8 {[%clk 0:07:58.4]} 29. Qa5 {[%clk
0:09:00.7]} 29... Bh6 {[%clk 0:07:23.9]} 30. a4 {[%clk 0:08:37.1]} 30... Rxe4
{[%clk 0:07:12.3]} 31. Qxb5 {[%clk 0:07:12.6]} 31... Qe7 {[%clk 0:06:18.7]} 32.
Qb8+ {[%clk 0:06:20.1]} 32... Kg7 {[%clk 0:06:11.9]} 33. Rxd2 {[%clk 0:06:09.6]}
33... Re1+ {[%clk 0:06:05.6]} 34. Kh2 {[%clk 0:06:12.7]} 34... Bxd2 {[%clk
0:06:09.3]} 0-1

[Event "Live Chess"]
[Site "Chess.com"]
[Date "2023.09.16"]
[Round "-"]
[White "Larissa1413"]
[Black "Japaawz"]
[Result "1-0"]
[WhiteElo "1920"]
[BlackElo "397"]
[TimeControl "900+5"]
[EndTime "16:52:54 PDT"]
[Termination "Larissa1413 venceu por xeque-mate"]

1. d4 {[%clk 0:14:38.7]} 1... c6 {[%clk 0:14:51.4]} 2. c4 {[%clk 0:14:42.1]}
2... Na6 {[%clk 0:14:53.3]} 3. Nc3 {[%clk 0:14:41.1]} 3... Qc7 {[%clk
0:14:53.2]} 4. e4 {[%clk 0:14:43.2]} 4... b6 {[%clk 0:14:56.6]} 5. Nf3 {[%clk
0:14:44.7]} 5... Bb7 {[%clk 0:15:00.3]} 6. Bd3 {[%clk 0:14:40.6]} 6... Nf6
{[%clk 0:15:02.1]} 7. g3 {[%clk 0:14:34.9]} 7... d6 {[%clk 0:15:05.5]} 8. Bf4
{[%clk 0:14:36.6]} 8... e5 {[%clk 0:15:08.7]} 9. dxe5 {[%clk 0:14:38.8]} 9...
dxe5 {[%clk 0:15:12.8]} 10. Bxe5 {[%clk 0:14:41.6]} 10... Qd7 {[%clk 0:15:09]}
11. O-O {[%clk 0:14:41.6]} 11... Bb4 {[%clk 0:15:11]} 12. Qc2 {[%clk 0:14:39.8]}
12... O-O {[%clk 0:15:10.8]} 13. Bxf6 {[%clk 0:14:39.5]} 13... gxf6 {[%clk
0:15:13.4]} 14. e5 {[%clk 0:14:41.7]} 14... f5 {[%clk 0:15:14.3]} 15. Bxf5
{[%clk 0:14:44.3]} 15... Qe7 {[%clk 0:15:10.1]} 16. Bxh7+ {[%clk 0:14:45.2]}
16... Kh8 {[%clk 0:15:10.4]} 17. Be4 {[%clk 0:14:39.1]} 17... Rab8 {[%clk
0:15:12.4]} 18. a3 {[%clk 0:14:34]} 18... Bxc3 {[%clk 0:15:06.5]} 19. Qxc3
{[%clk 0:14:35.5]} 19... Nc5 {[%clk 0:15:10.6]} 20. e6+ {[%clk 0:14:34]} 20...
Kg8 {[%clk 0:15:05.2]} 21. Bc2 {[%clk 0:14:25]} 21... Qxe6 {[%clk 0:15:05]} 22.
Ng5 {[%clk 0:14:24.5]} 22... Qh6 {[%clk 0:14:48.8]} 23. Bh7+ {[%clk 0:14:25.2]}
23... Qxh7 {[%clk 0:14:38.6]} 24. Nxh7 {[%clk 0:14:27.3]} 24... Kxh7 {[%clk
0:14:41.1]} 25. Qf6 {[%clk 0:14:27.4]} 25... Rbe8 {[%clk 0:14:43.1]} 26. Rfe1
{[%clk 0:14:27.4]} 26... Rxe1+ {[%clk 0:14:45.3]} 27. Rxe1 {[%clk 0:14:29.1]}
27... Nd3 {[%clk 0:14:50.2]} 28. Qf5+ {[%clk 0:14:29.9]} 28... Kh8 {[%clk
0:14:47.3]} 29. Qxd3 {[%clk 0:14:33.3]} 29... Ba6 {[%clk 0:14:49.8]} 30. Re7
{[%clk 0:14:35.2]} 30... b5 {[%clk 0:14:51.7]} 31. Qd4+ {[%clk 0:14:36.5]} 31...
Kh7 {[%clk 0:14:52.8]} 32. Qh4+ {[%clk 0:14:37.3]} 32... Kg7 {[%clk 0:14:55.2]}
33. Qg5+ {[%clk 0:14:38.4]} 33... Kh8 {[%clk 0:14:57.2]} 34. Re4 {[%clk
0:14:41.8]} 34... bxc4 {[%clk 0:14:59.6]} 35. Rh4# {[%clk 0:14:44.8]} 1-0

[Event "Live Chess"]
[Site "Chess.com"]
[Date "2023.09.16"]
[Round "-"]
[White "GilbertoGOFaria"]
[Black "Capi-D-Vara"]
[Result "1-0"]
[WhiteElo "1667"]
[BlackElo "1272"]
[TimeControl "900+5"]
[EndTime "16:53:55 PDT"]
[Termination "GilbertoGOFaria venceu por desistência"]

1. Nf3 {[%clk 0:15:01]} 1... Nf6 {[%clk 0:15:01.6]} 2. d4 {[%clk 0:15:05]} 2...
g6 {[%clk 0:15:05]} 3. Bf4 {[%clk 0:15:09.4]} 3... d6 {[%clk 0:15:08.6]} 4. c4
{[%clk 0:15:12.9]} 4... Bg7 {[%clk 0:15:12.3]} 5. Nc3 {[%clk 0:15:16.5]} 5...
O-O {[%clk 0:15:12.5]} 6. e3 {[%clk 0:15:19]} 6... Bf5 {[%clk 0:15:14]} 7. h3
{[%clk 0:15:22.5]} 7... e5 {[%clk 0:15:06.7]} 8. dxe5 {[%clk 0:15:24.6]} 8...
dxe5 {[%clk 0:15:11.6]} 9. Qxd8 {[%clk 0:15:26.5]} 9... Rxd8 {[%clk 0:15:16.5]}
10. Bxe5 {[%clk 0:15:30.1]} 10... Nbd7 {[%clk 0:15:14.9]} 11. Bxc7 {[%clk
0:15:33.1]} 11... Rdc8 {[%clk 0:15:18.1]} 12. Bf4 {[%clk 0:15:12.5]} 12... Ne4
{[%clk 0:14:42.6]} 13. Nxe4 {[%clk 0:15:06.8]} 13... Bxe4 {[%clk 0:14:47.5]} 14.
Nd4 {[%clk 0:14:56.3]} 1-0

[Event "Live Chess"]
[Site "Chess.com"]
[Date "2023.09.16"]
[Round "-"]
[White "ViniciusBritoFc"]
[Black "Tercette"]
[Result "1-0"]
[WhiteElo "1199"]
[BlackElo "275"]
[TimeControl "900+5"]
[EndTime "16:55:17 PDT"]
[Termination "ViniciusBritoFc venceu por xeque-mate"]

1. e4 {[%clk 0:15:02.6]} 1... e5 {[%clk 0:14:40.5]} 2. Qf3 {[%clk 0:15:07.5]}
2... Qh4 {[%clk 0:14:37.7]} 3. Bc4 {[%clk 0:15:09.7]} 3... Bc5 {[%clk
0:14:39.6]} 4. Qxf7+ {[%clk 0:15:12.1]} 4... Kd8 {[%clk 0:14:39.5]} 5. g3 {[%clk
0:15:15.3]} 5... Qf4 {[%clk 0:14:41.4]} 6. Qxf4 {[%clk 0:15:15.6]} 6... Nh6
{[%clk 0:14:43.8]} 7. Qg5+ {[%clk 0:15:18.4]} 7... Ke8 {[%clk 0:14:43.8]} 8.
Qxe5+ {[%clk 0:15:18.4]} 8... Kd8 {[%clk 0:14:43]} 9. Qxc5 {[%clk 0:15:18.9]}
9... Ng4 {[%clk 0:14:43]} 10. Qg5+ {[%clk 0:15:21.3]} 10... Nf6 {[%clk 0:14:43]}
11. d3 {[%clk 0:15:24.9]} 11... Re8 {[%clk 0:14:42.8]} 12. Bf7 {[%clk
0:15:25.2]} 12... Re7 {[%clk 0:14:41.2]} 13. Qxg7 {[%clk 0:15:28.3]} 13... Rxf7
{[%clk 0:14:41.7]} 14. Qxf7 {[%clk 0:15:33.2]} 14... Ne8 {[%clk 0:14:31.3]} 15.
Bg5+ {[%clk 0:15:35.9]} 15... Nf6 {[%clk 0:14:27.1]} 16. Qf8# {[%clk 0:15:38.8]}
1-0

[Event "Live Chess"]
[Site "Chess.com"]
[Date "2023.09.16"]
[Round "-"]
[White "Sophowl"]
[Black "Frogstetic"]
[Result "0-1"]
[WhiteElo "301"]
[BlackElo "2001"]
[TimeControl "900+5"]
[EndTime "16:55:33 PDT"]
[Termination "Frogstetic venceu por xeque-mate"]

1. d4 {[%clk 0:14:56.8]} 1... e5 {[%clk 0:15:03.2]} 2. dxe5 {[%clk 0:14:58.8]}
2... Qe7 {[%clk 0:15:07.3]} 3. f4 {[%clk 0:15:01.3]} 3... Nc6 {[%clk 0:15:08.9]}
4. Nf3 {[%clk 0:14:59.5]} 4... f6 {[%clk 0:15:13]} 5. exf6 {[%clk 0:15:00.5]}
5... Nxf6 {[%clk 0:15:17.9]} 6. c4 {[%clk 0:14:57.6]} 6... Ne4 {[%clk
0:15:05.3]} 7. Nc3 {[%clk 0:14:38.7]} 7... Nxc3 {[%clk 0:15:04.5]} 8. bxc3
{[%clk 0:14:40]} 8... Qf6 {[%clk 0:15:05.4]} 9. Bb2 {[%clk 0:14:36.6]} 9... Bd6
{[%clk 0:15:03.4]} 10. Qd3 {[%clk 0:13:59.7]} 10... Bxf4 {[%clk 0:15:00.2]} 11.
g3 {[%clk 0:13:50.9]} 11... Bh6 {[%clk 0:15:01.7]} 12. Bh3 {[%clk 0:13:46.1]}
12... d6 {[%clk 0:14:52.1]} 13. c5 {[%clk 0:13:49.5]} 13... Bxh3 {[%clk
0:14:53.4]} 14. c4 {[%clk 0:13:49.9]} 14... Qxb2 {[%clk 0:14:55.6]} 15. Qd1
{[%clk 0:13:44]} 15... Qc3+ {[%clk 0:14:55.5]} 16. Kf2 {[%clk 0:13:44.2]} 16...
Be3# {[%clk 0:14:58.4]} 0-1

[Event "Live Chess"]
[Site "Chess.com"]
[Date "2023.09.16"]
[Round "-"]
[White "Arthur_Maciel"]
[Black "Lucas-LGM"]
[Result "0-1"]
[WhiteElo "1113"]
[BlackElo "1569"]
[TimeControl "900+5"]
[EndTime "16:55:55 PDT"]
[Termination "Lucas-LGM venceu por desistência"]

1. e4 {[%clk 0:15:02.4]} 1... e5 {[%clk 0:15:04.1]} 2. Nf3 {[%clk 0:15:06.7]}
2... Nc6 {[%clk 0:15:06.8]} 3. Bc4 {[%clk 0:15:11.1]} 3... Be7 {[%clk
0:15:09.4]} 4. O-O {[%clk 0:15:15.5]} 4... Nf6 {[%clk 0:15:13.1]} 5. d3 {[%clk
0:15:19.6]} 5... O-O {[%clk 0:15:16.5]} 6. c3 {[%clk 0:15:23.6]} 6... d5 {[%clk
0:15:20.2]} 7. exd5 {[%clk 0:15:24.9]} 7... Nxd5 {[%clk 0:15:24.7]} 8. Bb5
{[%clk 0:15:22.1]} 8... Bd7 {[%clk 0:15:24.4]} 9. Bxc6 {[%clk 0:15:25.3]} 9...
Bxc6 {[%clk 0:15:25.6]} 10. Nxe5 {[%clk 0:15:29.5]} 10... Be8 {[%clk 0:15:26.8]}
11. Qf3 {[%clk 0:14:51]} 11... Bf6 {[%clk 0:15:18.1]} 12. Bf4 {[%clk 0:14:32]}
12... Nxf4 {[%clk 0:15:09.9]} 13. Qxf4 {[%clk 0:14:23.7]} 13... Qd6 {[%clk
0:15:12.2]} 14. d4 {[%clk 0:14:21.4]} 14... c5 {[%clk 0:15:13.2]} 15. g3 {[%clk
0:13:55.2]} 15... cxd4 {[%clk 0:15:16.2]} 16. cxd4 {[%clk 0:13:20.7]} 16... Qd5
{[%clk 0:14:38.7]} 17. Nc3 {[%clk 0:12:52.2]} 17... Qe6 {[%clk 0:14:12.5]} 18.
Rfe1 {[%clk 0:12:33.4]} 18... Qc8 {[%clk 0:14:10.2]} 19. Rac1 {[%clk 0:11:45.4]}
19... Qb8 {[%clk 0:14:07.6]} 20. Ne2 {[%clk 0:10:43.8]} 20... h6 {[%clk
0:14:08.8]} 21. Rc2 {[%clk 0:10:35.3]} 21... Bg5 {[%clk 0:14:10.1]} 22. Qe4
{[%clk 0:09:52.2]} 22... Bb5 {[%clk 0:13:53.3]} 23. Rc5 {[%clk 0:08:59.8]} 23...
a6 {[%clk 0:13:29.1]} 24. Rxb5 {[%clk 0:08:30.3]} 24... axb5 {[%clk 0:13:29.1]}
25. Nd7 {[%clk 0:08:33.8]} 25... Re8 {[%clk 0:13:18.9]} 26. Nxb8 {[%clk
0:07:24.2]} 26... Rxe4 {[%clk 0:13:19.5]} 27. Nd7 {[%clk 0:06:40.7]} 27... Bd2
{[%clk 0:13:20.8]} 28. Nc5 {[%clk 0:06:16.6]} 28... Ree8 {[%clk 0:13:09.9]} 29.
Kf1 {[%clk 0:05:19.3]} 29... Bxe1 {[%clk 0:13:11.9]} 30. Kxe1 {[%clk 0:05:23.7]}
30... Re7 {[%clk 0:13:14.5]} 31. a3 {[%clk 0:05:21.7]} 31... Rae8 {[%clk
0:13:18.1]} 32. d5 {[%clk 0:04:09.2]} 32... Rxe2+ {[%clk 0:13:21.2]} 33. Kf1
{[%clk 0:04:13.7]} 33... Rxb2 {[%clk 0:13:22.8]} 34. d6 {[%clk 0:04:17.5]} 34...
Rd8 {[%clk 0:13:22.8]} 35. Nxb7 {[%clk 0:04:18.6]} 35... Rd7 {[%clk 0:13:26.4]}
36. a4 {[%clk 0:03:19.8]} 36... Rxb7 {[%clk 0:13:28.1]} 37. a5 {[%clk 0:03:22]}
37... Ra2 {[%clk 0:13:29.9]} 0-1